bitfinex-derivatives/quotes_BNBF0:USTF0_20260114
["timestamp","ask_amount","ask_price","bid_price","bid_amount"]
[1768371843216,0.75383424,938.17,937.19,1.0593804]
[1768371843416,0.75383424,938.16,937.19,1.0593804]
[1768371843616,0.75383424,938.15,937.19,1.0593804]
[1768371843813,0.75383424,938.14,937.19,1.0593804]
[1768371844017,0.75383424,938.13,937.19,1.0593804]
[1768371844212,0.75383424,938.12,937.19,1.0593804]
[1768371844418,0.75383424,938.11,937.19,1.0593804]
[1768371844715,0.75383424,938.1,937.19,1.0593804]
[1768371844916,0.75383424,938.09,937.19,1.0593804]
[1768371845117,0.75383424,938.08,937.19,1.0593804]
[1768371845317,3.6751808,939.95,937.19,1.0593804]
[1768371845318,0.75383424,938.07,937.19,1.0593804]
[1768371845519,0.75383424,938.06,937.19,1.0593804]
[1768371845714,0.75383424,938.05,937.19,1.0593804]
[1768371846018,0.75383424,938.04,937.19,1.0593804]
[1768371846216,0.75383424,938.03,937.19,1.0593804]
[1768371846419,0.75383424,938.02,937.19,1.0593804]
[1768371846720,0.75383424,938.01,937.19,1.0593804]
[1768371847019,0.75383424,938.0,937.19,1.0593804]
[1768371847320,0.75383424,937.99,937.19,1.0593804]
[1768371847515,0.75383424,937.98,937.19,1.0593804]
[1768371847818,0.75383424,937.97,937.19,1.0593804]
[1768371848016,0.75383424,937.96,937.19,1.0593804]
[1768371848314,0.75383424,937.95,937.15,1.0593804]
[1768371848516,0.75383424,937.94,937.15,1.0593804]
[1768371848717,0.75383424,937.93,937.15,1.0593804]
[1768371848916,0.75383424,937.92,937.15,1.0593804]
[1768371849115,0.75383424,937.91,937.15,1.0593804]
[1768371849316,0.75383424,937.9,937.15,1.0593804]
[1768371849513,0.75383424,937.89,937.15,1.0593804]
[1768371849718,0.75383424,937.88,937.15,1.0593804]
[1768371849913,0.75383424,937.87,937.15,1.0593804]
[1768371850118,0.75383424,937.86,937.14,1.0593804]
[1768371850316,0.75383424,937.85,937.14,1.0593804]
[1768371850515,0.75383424,937.84,937.14,1.0593804]
[1768371850715,0.01022608,938.82,937.14,1.0593804]
[1768371850716,0.75383424,937.83,937.14,1.0593804]
[1768371850920,0.75383424,937.82,937.14,1.0593804]
[1768371851216,0.75383424,937.81,937.15,1.0593804]
[1768371851416,0.75383424,937.8,937.15,1.0593804]
[1768371851616,0.75383424,937.79,937.15,1.0593804]
[1768371851818,0.75383424,937.78,937.15,1.0593804]
[1768371852016,0.75383424,937.77,937.15,1.0593804]
[1768371852219,0.75383424,937.76,937.15,1.0593804]
[1768371852419,0.75383424,937.75,937.15,1.0593804]
[1768371852619,0.75383424,937.74,937.15,1.0593804]
[1768371852819,0.75383424,937.73,937.15,1.0593804]
[1768371853018,0.75383424,937.72,937.15,1.0593804]
[1768371853222,0.75383424,937.72,936.98,1.5890707]
[1768371853223,0.75383424,937.71,937.16,1.0593804]
[1768371853420,0.75383424,937.7,937.16,1.0593804]
[1768371853617,0.75383424,937.69,937.16,1.0593804]
[1768371853822,0.75383424,937.68,937.16,1.0593804]
[1768371854022,0.75383424,937.67,937.16,1.0593804]
[1768371854219,0.75383424,937.66,937.16,1.0593804]
[1768371854421,0.75383424,937.65,937.16,1.0593804]
[1768371854623,0.75383424,937.64,937.16,1.0593804]
[1768371854823,0.0132772,938.63,937.16,1.0593804]
[1768371854824,0.75383424,937.63,937.16,1.0593804]
[1768371855025,0.75383424,937.62,937.16,1.0593804]
[1768371855324,0.75467088,937.61,937.17,1.0593804]
[1768371855525,0.01282667,938.59,937.17,1.0593804]
[1768371855725,0.75477069,938.58,937.17,1.0593804]
[1768371855919,0.75477069,938.57,937.17,1.0593804]
[1768371856125,0.75477069,938.56,937.17,1.0593804]
[1768371856326,0.75477069,938.55,937.18,1.0593804]
[1768371856522,0.75477069,938.54,937.18,1.0593804]
[1768371856722,0.75477069,938.53,937.18,1.0593804]
[1768371856923,0.75477069,938.52,937.18,1.0593804]
[1768371857228,0.75477069,938.51,937.18,1.0593804]
[1768371857425,0.75477069,938.5,937.18,1.0593804]
[1768371857625,0.75477069,938.49,937.18,1.0593804]
[1768371857829,0.75477069,938.48,937.18,1.0593804]
[1768371858030,0.75477069,938.47,937.18,1.0593804]
[1768371858228,0.75477069,938.46,937.18,1.0593804]
[1768371858431,0.75477069,938.45,937.18,1.0593804]
[1768371858631,0.75477069,938.44,937.18,1.0593804]
[1768371858833,0.75477069,938.43,937.18,1.0593804]
[1768371859030,0.75477069,938.42,937.18,1.0593804]
[1768371859231,0.75477069,938.41,937.18,1.0593804]
[1768371859430,0.75477069,938.4,937.18,1.0593804]
[1768371859634,0.75477069,938.39,937.18,1.0593804]
[1768371859832,0.75477069,938.38,937.18,1.0593804]
[1768371860029,0.75477069,938.37,937.18,1.0593804]
[1768371860231,0.75477069,938.36,937.18,1.0593804]
[1768371860430,0.75477069,938.35,937.18,1.0593804]
[1768371860736,0.75477069,938.34,937.18,1.0593804]
[1768371860932,0.75477069,938.33,937.14,1.0593804]
[1768371861233,0.75477069,938.32,937.12,1.0593804]
[1768371861437,0.75477069,938.31,937.12,1.0593804]
[1768371861636,0.75477069,938.3,937.12,1.0593804]
[1768371861837,0.75477069,938.29,937.12,1.0593804]
[1768371862136,0.75477069,938.28,937.12,1.0593804]
[1768371862335,0.75477069,938.27,937.12,1.0593804]
[1768371862534,0.75477069,938.26,937.12,1.0593804]
[1768371862734,0.75477069,938.25,937.12,1.0593804]
[1768371862933,0.75477069,938.24,937.12,1.0593804]
[1768371863135,0.75477069,938.23,937.12,1.0593804]
[1768371863332,0.75477069,938.22,937.12,1.0593804]
[1768371863533,0.75477069,938.21,937.12,1.0593804]
[1768371863732,0.75477069,938.2,937.12,1.0593804]
[1768371863933,0.75477069,938.19,937.12,1.0593804]
[1768371864134,3.6751808,939.77,937.12,1.0593804]
[1768371864135,0.75477069,938.18,937.12,1.0593804]
[1768371864337,0.00888127,939.15,937.12,1.0593804]
[1768371864536,0.75540749,939.14,937.12,1.0593804]
[1768371864737,0.75540749,939.13,937.12,1.0593804]
[1768371865034,0.75540749,939.12,937.12,1.0593804]
[1768371865235,0.75540749,939.11,937.12,1.0593804]
[1768371865439,0.75540749,939.1,937.12,1.0593804]
[1768371865637,0.75540749,939.09,937.12,1.0593804]
[1768371865836,0.75540749,939.08,937.12,1.0593804]
[1768371866036,0.75540749,939.07,937.12,1.0593804]
[1768371866240,0.75540749,939.06,937.12,1.0593804]
[1768371866438,0.75540749,939.05,937.12,1.0593804]
[1768371866636,0.75540749,939.04,937.12,1.0593804]
[1768371866835,0.75540749,939.03,937.12,1.0593804]
[1768371867135,0.75540749,939.02,937.12,1.0593804]
[1768371867337,0.75540749,939.01,937.12,1.0593804]
[1768371867538,0.75540749,939.0,937.12,1.0593804]
[1768371867840,0.75540749,938.99,937.12,1.0593804]
[1768371868038,0.75540749,938.98,937.12,1.0593804]
[1768371868236,0.75540749,938.97,937.12,1.0593804]
[1768371868437,0.75540749,938.96,937.12,1.0593804]
[1768371868741,0.75540749,938.95,937.12,1.0593804]
[1768371869041,0.75540749,938.94,937.12,1.0593804]
[1768371869238,0.75540749,938.93,937.12,1.0593804]
[1768371869541,0.75540749,938.92,937.12,1.0593804]
[1768371869739,0.75540749,938.91,937.12,1.0593804]
[1768371869942,0.75540749,938.9,937.12,1.0593804]
[1768371870242,0.75540749,938.89,937.12,1.0593804]
[1768371870544,0.75540749,938.88,937.07,1.0593804]
[1768371870743,0.75540749,938.87,937.07,1.0593804]
[1768371870944,0.75540749,938.86,937.07,1.0593804]
[1768371871142,0.75540749,938.85,937.07,1.0593804]
[1768371871346,0.75540749,938.84,937.08,1.0593804]
[1768371871541,0.75540749,938.83,937.08,1.0593804]
[1768371871742,0.75540749,938.82,937.08,1.0593804]
[1768371872044,0.75540749,938.81,937.08,1.0593804]
[1768371872239,0.75540749,938.8,937.08,1.0593804]
[1768371872441,0.75540749,938.79,937.08,1.0593804]
[1768371872644,0.75540749,938.78,937.08,1.0593804]
[1768371872840,0.75540749,938.77,937.08,1.0593804]
[1768371873046,0.75540749,938.76,937.08,1.0593804]
[1768371873243,0.75540749,938.75,937.09,1.0593804]
[1768371873443,0.75540749,938.74,937.09,1.0593804]
[1768371873647,0.75540749,938.73,937.09,1.0593804]
[1768371873848,0.75540749,938.72,937.09,1.0593804]
[1768371874044,0.75540749,938.71,937.09,1.0593804]
[1768371874249,0.75540749,938.7,937.1,1.0593804]
[1768371874548,0.75540749,938.69,937.1,1.0593804]
[1768371874749,3.6751808,939.68,937.1,1.0593804]
[1768371874750,0.75540749,938.68,937.1,1.0593804]
[1768371874945,0.75540749,938.67,937.1,1.0593804]
[1768371875147,0.75540749,938.66,937.1,1.0593804]
[1768371875344,0.75540749,938.65,937.11,1.0593804]
[1768371875648,0.75540749,938.64,937.11,1.0593804]
[1768371875949,0.75540749,938.63,937.11,1.0593804]
[1768371876144,0.75540749,938.62,937.11,1.0593804]
[1768371876349,0.75540749,938.61,937.12,1.0593804]
[1768371876647,0.75540749,938.6,937.12,1.0593804]
[1768371876845,0.75540749,938.59,937.06,1.0593804]
[1768371877044,0.75540749,938.58,937.05,1.0593804]
[1768371877248,0.75540749,938.57,937.06,1.0593804]
[1768371877448,0.75540749,938.56,937.06,1.0593804]
[1768371877644,0.75540749,938.55,937.06,1.0593804]
[1768371877944,0.75540749,938.54,937.06,1.0593804]
[1768371878149,0.75540749,938.53,937.06,1.0593804]
[1768371878346,0.01111342,939.49,937.06,1.0593804]
[1768371878347,0.75540749,938.52,937.06,1.0593804]
[1768371878546,0.75540749,938.51,937.06,1.0593804]
[1768371878752,0.75540749,938.5,937.06,1.0593804]
[1768371878951,3.6751808,939.59,937.06,1.0593804]
[1768371878952,0.75540749,938.49,937.06,1.0593804]
[1768371879150,0.75540749,938.48,937.06,1.0593804]
[1768371879353,0.75540749,938.47,937.06,1.0593804]
[1768371879549,0.75540749,938.46,937.06,1.0593804]
[1768371879753,0.75540749,938.45,936.98,1.0593804]
[1768371879954,0.75540749,938.44,936.98,1.0593804]
[1768371880151,0.75540749,938.43,936.97,1.0593804]
[1768371880353,0.75540749,938.42,936.97,1.0593804]
[1768371880554,0.75540749,938.41,936.97,1.0593804]
[1768371880755,0.75540749,938.4,936.97,1.0593804]
[1768371880955,0.75540749,938.39,936.97,1.0593804]
[1768371881156,0.75540749,938.38,936.97,1.0593804]
[1768371881352,0.75540749,938.37,936.97,1.0593804]
[1768371881558,0.75540749,938.36,936.97,1.0593804]
[1768371881859,0.75540749,938.35,936.97,1.0593804]
[1768371882054,0.75540749,938.34,936.97,1.0593804]
[1768371882259,0.75540749,938.33,936.96,1.0593804]
[1768371882459,0.75540749,938.32,936.96,1.0593804]
[1768371882759,0.75540749,938.31,936.96,1.0593804]
[1768371883063,0.75540749,938.3,936.95,1.0593804]
[1768371883263,0.75540749,938.29,936.94,1.0593804]
[1768371883458,0.75540749,938.28,936.94,1.0593804]
[1768371883660,0.75540749,938.27,936.94,1.0593804]
[1768371883859,0.01298653,939.24,936.94,1.0593804]
[1768371883860,0.75540749,938.26,936.94,1.0593804]
[1768371884158,0.75540749,938.25,936.94,1.0593804]
[1768371884359,0.75540749,938.24,936.94,1.0593804]
[1768371884561,0.75540749,938.23,936.94,1.0593804]
[1768371884758,0.75540749,938.22,936.94,1.0593804]
[1768371885060,0.75540749,938.21,936.94,1.0593804]
[1768371885261,0.75540749,938.2,936.93,1.0593804]
[1768371885462,0.75540749,938.19,936.93,1.0593804]
[1768371885660,0.75540749,938.18,936.93,1.0593804]
[1768371885859,0.75540749,938.17,936.93,1.0593804]
[1768371886060,0.75540749,938.16,936.93,1.0593804]
[1768371886262,0.75540749,938.15,936.93,1.0593804]
[1768371886460,0.75540749,938.14,936.93,1.0593804]
[1768371886760,0.75540749,938.13,936.93,1.0593804]
[1768371886962,0.75540749,938.12,936.93,1.0593804]
[1768371887161,0.75540749,938.11,936.92,1.0593804]
[1768371887364,0.75540749,938.1,936.92,1.0593804]
[1768371887561,0.75540749,938.09,936.92,1.0593804]
[1768371887765,0.75540749,938.08,936.92,1.0593804]
[1768371887966,0.75540749,938.07,936.92,1.0593804]
[1768371888166,0.75540749,938.06,936.92,1.0593804]
[1768371888368,0.75540749,938.05,936.92,1.0593804]
[1768371888564,0.75540749,938.04,936.92,1.0593804]
[1768371888864,0.75540749,938.03,936.92,1.0593804]
[1768371889063,0.75540749,938.02,936.92,1.0593804]
[1768371889265,0.75540749,938.01,936.94,1.0593804]
[1768371889465,0.75540749,938.0,937.0,1.0593804]
[1768371889665,0.75540749,937.99,937.0,1.0593804]
[1768371889864,0.75540749,937.98,937.0,1.0593804]
[1768371890064,0.75540749,937.97,937.0,1.0593804]
[1768371890265,0.75540749,937.96,937.01,1.0593804]
[1768371890465,0.75540749,937.95,937.01,1.0593804]
[1768371890667,0.75540749,937.94,937.01,1.0593804]
[1768371890965,0.75540749,937.93,937.01,1.0593804]
[1768371891165,3.6751808,939.61,937.01,1.0593804]
[1768371891166,0.75540749,937.92,937.01,1.0593804]
[1768371891364,0.75540749,937.91,937.01,1.0593804]
[1768371891563,0.75540749,937.9,937.01,1.0593804]
[1768371891867,0.75540749,937.89,937.01,1.0593804]
[1768371892065,0.75540749,937.88,937.01,1.0593804]
[1768371892266,0.01185983,938.85,937.01,1.0593804]
[1768371892267,0.75540749,937.87,937.01,1.0593804]
[1768371892462,0.75540749,937.86,937.01,1.0593804]
[1768371892665,0.75540749,937.85,937.01,1.0593804]
[1768371892869,0.75540749,937.84,937.01,1.0593804]
[1768371893069,0.75540749,937.83,937.01,1.0593804]
[1768371893365,0.75540749,937.82,937.01,1.0593804]
[1768371893568,0.75540749,937.81,937.01,1.0593804]
[1768371893768,0.75540749,937.8,937.01,1.0593804]
[1768371894065,0.75540749,937.79,937.01,1.0593804]
[1768371894265,0.75540749,937.78,937.02,1.0593804]
[1768371894468,0.75540749,937.77,937.02,1.0593804]
[1768371894665,0.75540749,937.76,937.02,1.0593804]
[1768371894968,0.75540749,937.75,937.02,1.0593804]
[1768371895267,0.75540749,937.74,937.02,1.0593804]
[1768371895466,0.75540749,937.73,937.02,1.0593804]
[1768371895766,0.75540749,937.72,937.04,1.0593804]
[1768371895964,0.75540749,937.71,937.09,1.0593804]
[1768371896262,0.75540749,937.7,937.1,1.0593804]
[1768371896463,0.75540749,937.69,937.1,1.0593804]
[1768371896665,0.75540749,937.68,937.1,1.0593804]
[1768371896867,0.75540749,937.67,937.1,1.0593804]
[1768371897063,0.75540749,937.66,937.1,1.0593804]
[1768371897265,0.75540749,937.65,937.1,1.0593804]
[1768371897464,0.75540749,937.64,937.1,1.0593804]
[1768371897667,0.75540749,937.63,937.1,1.0593804]
[1768371897868,0.75540749,937.62,937.1,1.0593804]
[1768371898066,0.75540749,937.61,937.1,1.0593804]
[1768371898264,0.75540749,937.6,937.1,1.0593804]
[1768371898564,0.75540749,937.59,937.1,1.0593804]
[1768371898763,0.75540749,937.58,937.1,1.0593804]
[1768371898968,0.75540749,937.57,937.1,1.0593804]
[1768371899166,0.75540749,937.56,937.1,1.0593804]
[1768371899363,0.75540749,937.55,937.1,1.0593804]
[1768371899564,0.75540749,937.54,937.1,1.0593804]
[1768371899768,0.75540749,937.53,937.1,1.0593804]
[1768371899968,0.75540749,937.52,937.1,1.0593804]
[1768371900169,0.75540749,937.51,937.11,1.0593804]
[1768371900369,0.75540749,937.5,937.11,1.0593804]
[1768371900570,0.75540749,937.49,937.11,1.0593804]
[1768371900870,0.75540749,937.48,937.11,1.0593804]
[1768371901167,0.75540749,937.47,937.1,1.0593804]
[1768371901367,0.75540749,937.46,937.1,1.0593804]
[1768371901567,0.75540749,937.45,937.1,1.0593804]
[1768371901871,0.75540749,937.44,937.1,1.0593804]
[1768371902171,0.75540749,937.43,937.1,1.0593804]
[1768371902372,0.75540749,937.42,937.1,1.0593804]
[1768371902567,0.75540749,937.41,937.1,1.0593804]
[1768371902773,0.00896073,938.37,937.1,1.0593804]
[1768371903071,0.75681616,938.36,937.1,1.0593804]
[1768371903272,0.75681616,938.35,937.12,1.0593804]
[1768371903573,0.75681616,938.34,937.21,1.0593804]
[1768371903773,0.75681616,938.33,937.21,1.0593804]
[1768371903973,0.75681616,938.32,937.22,1.0593804]
[1768371904168,0.75681616,938.31,937.22,1.0593804]
[1768371904367,0.75681616,938.3,937.22,1.0593804]
[1768371904568,0.75681616,938.29,937.22,1.0593804]
[1768371904868,0.75681616,938.28,937.22,1.0593804]
[1768371905070,0.75681616,938.27,937.22,1.0593804]
[1768371905272,0.75681616,938.26,937.22,1.0593804]
[1768371905468,0.75681616,938.25,937.22,1.0593804]
[1768371905672,0.75681616,938.24,937.23,1.0593804]
[1768371905869,0.75681616,938.23,937.23,1.0593804]
[1768371906071,0.75681616,938.22,937.23,1.0593804]
[1768371906272,0.75681616,938.21,937.24,1.0593804]
[1768371906472,0.75681616,938.2,937.29,1.0593804]
[1768371906671,0.75681616,938.19,937.29,1.0593804]
[1768371906871,0.75681616,938.18,937.29,1.0593804]
[1768371907077,0.75681616,938.17,937.29,1.0593804]
[1768371907274,0.75681616,938.16,937.29,1.0593804]
[1768371907573,0.75681616,938.15,937.28,1.0593804]
[1768371907777,0.75691419,938.14,937.28,1.0593804]
[1768371907979,0.75691419,938.13,937.28,1.0593804]
[1768371908278,0.75691419,938.12,937.39,1.0593804]
[1768371908479,0.75691419,938.11,937.38,1.0593804]
[1768371908775,0.75691419,938.1,937.38,1.0593804]
[1768371908975,0.75691419,938.09,937.38,1.0593804]
[1768371909174,0.75691419,938.08,937.38,1.0593804]
[1768371909384,0.75691419,938.07,937.37,1.0593804]
[1768371909575,0.75691419,938.06,937.37,1.0593804]
[1768371909775,0.75691419,938.05,937.37,1.0593804]
[1768371909976,0.75691419,938.04,937.4,1.0593804]
[1768371910179,0.75691419,938.03,937.47,1.0593804]
[1768371910380,0.75691419,938.02,937.45,1.0593804]
[1768371910579,0.75691419,938.01,937.45,1.0593804]
[1768371910780,0.75691419,938.0,937.45,1.0593804]
[1768371910977,0.75691419,937.99,937.45,1.0593804]
[1768371911182,0.75691419,937.98,937.45,1.0593804]
[1768371911380,0.75691419,937.97,937.44,1.0593804]
[1768371911683,0.75691419,937.96,937.44,1.0593804]
[1768371911883,0.75691419,937.95,937.44,1.0593804]
[1768371912083,0.75691419,937.94,937.44,1.0593804]
[1768371912284,0.75691419,937.93,937.44,1.0593804]
[1768371912484,0.75691419,937.92,937.42,1.0593804]
[1768371912684,0.00939112,938.9,937.42,1.0593804]
[1768371912685,0.75691419,937.91,937.42,1.0593804]
[1768371912882,0.75691419,937.9,937.42,1.0593804]
[1768371913081,0.75691419,937.89,937.42,1.0593804]
[1768371913284,0.00982419,938.85,937.41,1.0593804]
[1768371913487,0.75544398,938.84,937.41,1.0593804]
[1768371913684,0.75544398,938.83,937.41,1.0593804]
[1768371913888,0.75544398,938.82,937.41,1.0593804]
[1768371914088,0.75544398,938.81,937.41,1.0593804]
[1768371914285,0.75544398,938.8,937.4,1.0593804]
[1768371914489,0.75544398,938.79,937.4,1.0593804]
[1768371914690,0.75544398,938.78,937.4,1.0593804]
[1768371914887,0.75544398,938.77,937.4,1.0593804]
[1768371915087,0.75544398,938.76,937.4,1.0593804]
[1768371915292,0.75544398,938.75,937.39,1.0593804]
[1768371915492,0.75544398,938.74,937.39,1.0593804]
[1768371915787,0.75544398,938.73,937.31,1.0593804]
[1768371915991,0.75544398,938.72,937.31,1.0593804]
[1768371916190,0.75544398,938.71,937.31,1.0593804]
[1768371916390,0.75544398,938.7,937.23,1.0593804]
[1768371916586,0.75544398,938.69,937.21,1.0593804]
[1768371916793,0.75544398,938.68,937.21,1.0593804]
[1768371917092,0.75544398,938.67,937.21,1.0593804]
[1768371917290,0.75544398,938.66,937.21,1.0593804]
[1768371917492,0.75544398,938.65,937.21,1.0593804]
[1768371917791,0.75544398,938.64,937.21,1.0593804]
[1768371917993,0.75544398,938.63,937.21,1.0593804]
[1768371918188,0.75544398,938.62,937.21,1.0593804]
[1768371918390,0.75544398,938.61,937.21,1.0593804]
[1768371918590,0.75544398,938.6,937.21,1.0593804]
[1768371918793,0.75544398,938.59,937.18,1.0593804]
[1768371918993,0.75544398,938.58,937.18,1.0593804]
[1768371919289,0.75544398,938.57,937.18,1.0593804]
[1768371919490,0.75544398,938.56,937.18,1.0593804]
[1768371919690,0.75544398,938.55,937.18,1.0593804]
[1768371919895,0.75544398,938.54,937.18,1.0593804]
[1768371920096,0.75544398,938.53,937.18,1.0593804]
[1768371920398,0.75544398,938.52,937.18,1.0593804]
[1768371920692,0.75544398,938.51,937.18,1.0593804]
[1768371920993,0.75544398,938.5,937.18,1.0593804]
[1768371921197,0.75544398,938.49,937.17,1.0593804]
[1768371921398,0.75544398,938.48,937.17,1.0593804]
[1768371921597,0.75544398,938.47,937.17,1.0593804]
[1768371921895,0.75544398,938.46,937.17,1.0593804]
[1768371922095,0.75544398,938.45,937.17,1.0593804]
[1768371922294,0.75544398,938.44,937.17,1.0593804]
[1768371922495,0.75544398,938.43,937.17,1.0593804]
[1768371922696,0.75544398,938.42,937.17,1.0593804]
[1768371922896,0.75544398,938.41,937.17,1.0593804]
[1768371923097,0.75544398,938.4,937.15,1.0593804]
[1768371923298,0.75544398,938.39,937.0,1.0593804]
[1768371923499,0.75544398,938.38,936.99,1.0593804]
[1768371923701,0.75544398,938.37,936.96,1.0593804]
[1768371924002,0.75427819,938.36,936.9,1.0593804]
[1768371924202,0.75427819,938.35,936.9,1.0593804]
[1768371924400,0.75427819,938.34,936.84,1.0593804]
[1768371924598,0.75427819,938.33,936.84,1.0593804]
[1768371924898,0.75427819,938.32,936.84,1.0593804]
[1768371925098,0.75427819,938.31,936.84,1.0593804]
[1768371925298,0.75427819,938.3,936.84,1.0593804]
[1768371925499,0.75427819,938.29,936.79,1.0593804]
[1768371925698,0.75427819,938.28,936.8,1.0593804]
[1768371925898,0.75427819,938.28,936.63,1.5890707]
[1768371925899,0.75427819,938.27,936.79,1.0593804]
[1768371926102,0.75427819,938.26,936.78,1.0593804]
[1768371926302,0.75427819,938.25,936.72,1.0593804]
[1768371926499,0.75427819,938.24,936.72,1.0593804]
[1768371926699,0.75427819,938.23,936.72,1.0593804]
[1768371926900,0.75427819,938.22,936.72,1.0593804]
[1768371927104,0.75427819,938.21,936.72,1.0593804]
[1768371927403,0.75427819,938.2,936.69,1.0593804]
[1768371927604,0.75427819,938.19,936.69,1.0593804]
[1768371927801,0.75427819,938.18,936.6,1.0593804]
[1768371928005,0.75427819,938.17,936.6,1.0593804]
[1768371928302,0.75427819,938.16,936.59,1.0593804]
[1768371928505,0.75427819,938.15,936.59,1.0593804]
[1768371928701,0.75427819,938.14,936.57,1.0593804]
[1768371928904,0.75427819,938.13,936.44,1.0593804]
[1768371929201,0.75427819,938.12,936.42,1.0593804]
[1768371929504,0.75427819,938.11,936.4,1.0593804]
[1768371929702,0.75427819,938.1,936.4,1.0593804]
[1768371929999,0.75427819,938.09,936.4,1.0593804]
[1768371930205,0.75427819,938.08,936.4,1.0593804]
[1768371930404,0.75427819,938.07,936.38,1.0593804]
[1768371930602,0.75427819,938.06,936.4,1.0593804]
[1768371930804,0.75427819,938.05,936.4,1.0593804]
[1768371931002,0.75427819,938.04,936.4,1.0593804]
[1768371931206,0.75427819,938.03,936.4,1.0593804]
[1768371931502,0.75427819,938.02,936.39,1.0593804]
[1768371931702,0.75427819,938.01,936.43,1.0593804]
[1768371932002,0.75427819,938.0,936.43,1.0593804]
[1768371932301,0.75427819,937.99,936.43,1.0593804]
[1768371932501,0.75427819,937.98,936.43,1.0593804]
[1768371932806,0.75427819,937.97,936.43,1.0593804]
[1768371933004,0.75427819,937.96,936.43,1.0593804]
[1768371933202,0.75427819,937.95,936.42,1.0593804]
[1768371933403,0.75427819,937.94,936.41,1.0593804]
[1768371933704,0.75427819,937.93,936.41,1.0593804]
[1768371933908,0.75427819,937.92,936.41,1.0593804]
[1768371934208,0.75427819,937.91,936.41,1.0593804]
[1768371934404,0.75427819,937.9,936.4,1.0593804]
[1768371934603,0.75427819,937.89,936.4,1.0593804]
[1768371934804,0.75427819,937.88,936.4,1.0593804]
[1768371935105,0.75427819,937.87,936.4,1.0593804]
[1768371935307,0.75427819,937.86,936.39,1.0593804]
[1768371935607,0.75427819,937.85,936.39,1.0593804]
[1768371935908,0.75427819,937.84,936.39,1.0593804]
[1768371936108,0.75427819,937.83,936.39,1.0593804]
[1768371936304,3.6751808,939.43,936.39,1.0593804]
[1768371936305,0.75427819,937.82,936.39,1.0593804]
[1768371936510,0.75427819,937.81,936.39,1.0593804]
[1768371936707,0.75427819,937.8,936.39,1.0593804]
[1768371936905,0.75427819,937.79,936.39,1.0593804]
[1768371937108,0.75427819,937.78,936.39,1.0593804]
[1768371937308,0.75427819,937.77,936.38,1.0593804]
[1768371937509,0.75427819,937.76,936.38,1.0593804]
[1768371937710,0.75427819,937.75,936.38,1.0593804]
[1768371937907,0.75427819,937.74,936.38,1.0593804]
[1768371938108,0.75427819,937.73,936.38,1.0593804]
[1768371938312,0.75427819,937.72,936.37,1.0593804]
[1768371938608,0.75427819,937.71,936.37,1.0593804]
[1768371938812,0.75427819,937.7,936.37,1.0593804]
[1768371939008,0.75427819,937.69,936.37,1.0593804]
[1768371939214,0.75427819,937.68,936.36,1.0593804]
[1768371939411,0.75427819,937.67,936.36,1.0593804]
[1768371939608,0.75427819,937.66,936.36,1.0593804]
[1768371939810,0.75427819,937.65,936.36,1.0593804]
[1768371940010,0.75067822,937.64,936.36,1.0593804]
[1768371940313,0.75067822,937.63,936.35,1.0593804]
[1768371940511,0.75067822,937.62,936.35,1.0593804]
[1768371940713,0.75067822,937.61,936.35,1.0593804]
[1768371940915,0.75067822,937.6,936.35,1.0593804]
[1768371941114,0.75067822,937.59,936.35,1.0593804]
[1768371941415,3.6751808,939.48,936.34,1.0593804]
[1768371941416,0.75067822,937.58,936.34,1.0593804]
[1768371941714,0.75067822,937.57,936.34,1.0593804]
[1768371941915,0.75067822,937.56,936.34,1.0593804]
[1768371942112,0.75067822,937.55,936.34,1.0593804]
[1768371942315,0.75067822,937.54,936.33,1.0593804]
[1768371942512,0.75067822,937.53,936.33,1.0593804]
[1768371942716,0.75067822,937.52,936.33,1.0593804]
[1768371942914,0.75067822,937.51,936.33,1.0593804]
[1768371943213,0.75067822,937.5,936.33,1.0593804]
[1768371943515,0.75067822,937.49,936.33,1.0593804]
[1768371943712,0.75067822,937.48,936.33,1.0593804]
[1768371943916,0.75067822,937.47,936.33,1.0593804]
[1768371944112,0.75067822,937.46,936.33,1.0593804]
[1768371944415,0.75067822,937.45,936.32,1.0593804]
[1768371944616,0.75067822,937.44,936.32,1.0593804]
[1768371944917,0.75067822,937.43,936.32,1.0593804]
[1768371945116,0.75067822,937.42,936.32,1.0593804]
[1768371945312,0.75067822,937.41,936.32,1.0593804]
[1768371945517,0.75067822,937.4,936.32,1.0593804]
[1768371945714,0.75067822,937.39,936.32,1.0593804]
[1768371945917,0.75067822,937.38,936.32,1.0593804]
[1768371946212,0.75067822,937.37,936.32,1.0593804]
[1768371946416,0.75067822,937.36,936.31,1.0593804]
[1768371946612,0.75067822,937.35,936.31,1.0593804]
[1768371946817,0.75067822,937.34,936.31,1.0593804]
[1768371947114,0.75067822,937.33,936.31,1.0593804]
[1768371947312,0.75067822,937.32,936.27,1.0593804]
[1768371947513,0.75067822,937.31,936.18,1.0593804]
[1768371947716,0.75067822,937.3,936.18,1.0593804]
[1768371948015,0.75067822,937.3,936.17,1.0593804]
[1768371948215,0.74904924,937.29,936.17,1.0593804]
[1768371948417,0.74904924,937.28,936.14,1.0593804]
[1768371948618,0.74904924,937.27,936.13,1.0593804]
[1768371948817,0.74904924,937.26,936.13,1.0593804]
[1768371949017,0.74904924,937.25,936.13,1.0593804]